bitfinex/quotes_ETHUSD_20220212
["timestamp","ask_amount","ask_price","bid_price","bid_amount"]
[1644659318860,1.30907479,2933.8,2933.5,0.02209328]
[1644659319061,0.001,2933.7,2933.5,0.02209328]
[1644659319262,1.56007479,2933.8,2933.5,0.02209328]
[1644659320110,2.56007479,2933.8,2933.5,0.02209328]
[1644659320305,1.56902327,2933.8,2933.5,0.02209328]
[1644659320505,1.56902327,2933.8,2933.4,0.00353271]
[1644659320706,0.64831253,2933.6,2933.4,0.00353271]
[1644659320906,0.64831253,2933.6,2933.3,0.0227601]
[1644659321606,0.64831253,2933.6,2933.2,3.8393935]
[1644659322407,0.64831253,2933.6,2933.2,3.83044335]
[1644659322712,0.64831253,2933.6,2933.2,3.8358606]
[1644659322909,0.64831253,2933.6,2933.2,3.83936391]
[1644659323509,0.64831253,2933.7,2933.3,3.10697781]
[1644659323762,0.64831253,2933.9,2933.3,3.11048112]
[1644659323961,0.00894805,2933.8,2933.3,3.11048112]
[1644659324761,0.64831253,2933.9,2933.3,3.11048112]
[1644659324963,1.16473034,2934.1,2933.8,0.89071289]
[1644659325164,0.001,2934.0,2933.8,0.89071289]
[1644659325863,0.64838533,2933.9,2933.8,0.89071289]
[1644659326164,0.64833646,2933.9,2933.8,0.89071289]
[1644659326366,0.87367854,2934.0,2933.8,0.89071289]
[1644659326666,0.64829519,2933.9,2933.8,0.89071289]
[1644659327508,0.64820757,2933.9,2933.8,0.89071289]
[1644659328508,0.64836828,2933.9,2933.8,0.89071289]
[1644659328715,0.301,2934.0,2933.8,0.89071289]
[1644659328716,0.30994826,2934.0,2933.8,0.89071289]
[1644659329115,1.1736786,2934.0,2933.8,0.89071289]
[1644659329313,0.001,2933.9,2933.8,0.89071289]
[1644659329514,0.301,2934.0,2933.8,0.89071289]
[1644659329715,0.64846807,2933.9,2933.8,0.89071289]
[1644659329915,0.3099482,2934.0,2933.8,0.89071289]
[1644659329916,0.4802482,2934.0,2933.8,0.89071289]
[1644659330115,0.64844049,2933.9,2933.8,0.89071289]
[1644659330317,0.66296463,2933.9,2933.8,0.89071289]
[1644659330526,0.01352414,2933.9,2933.8,0.89071289]
[1644659330716,0.01452414,2933.9,2933.8,0.89071289]
[1644659331557,0.66308486,2933.9,2933.8,0.89071289]
[1644659331759,0.01352414,2933.9,2933.8,0.89071289]
[1644659331957,0.01452414,2933.9,2933.8,0.89071289]
[1644659332558,0.01452414,2933.9,2933.4,0.1703]
[1644659332759,0.64853059,2933.7,2933.3,0.00350331]
[1644659334363,0.64853059,2933.7,2933.4,0.88525475]
[1644659334916,0.64853059,2933.7,2933.3,0.00350331]
[1644659336207,0.64853059,2933.6,2933.3,0.00350331]
[1644659336408,0.64853059,2933.6,2933.3,1.31213613]
[1644659337010,0.78644326,2933.6,2933.3,1.31213613]
[1644659337210,0.13791267,2933.5,2933.3,1.31213613]
[1644659337408,0.13791267,2933.4,2933.3,1.31213613]
[1644659337810,0.64853059,2933.6,2933.3,1.31213613]
[1644659339264,0.78644326,2933.5,2933.3,1.31213613]
[1644659339463,0.13791267,2933.4,2933.3,1.31213613]
[1644659339863,0.64853059,2933.5,2933.3,1.31213613]
[1644659340263,0.66189352,2933.5,2933.3,1.31213613]
[1644659340464,0.13791267,2933.4,2933.3,1.31213613]
[1644659341764,0.13791267,2933.4,2933.3,1.31208673]
[1644659341964,0.13791267,2933.4,2933.3,0.00350331]
[1644659342164,0.13791267,2933.4,2933.3,1.30858315]
[1644659342410,0.13791267,2933.4,2933.3,1.30858379]
[1644659342614,0.13791267,2933.4,2933.2,2.9216933]
[1644659342815,0.13791267,2933.4,2933.3,1.30858254]
[1644659343013,0.13791267,2933.4,2933.2,2.9216933]
[1644659343619,0.13791267,2933.4,2933.3,1.30896452]
[1644659343815,0.13791267,2933.4,2933.2,2.9216933]
[1644659344014,0.13791267,2933.4,2933.3,1.30896456]
[1644659344215,0.13791267,2933.4,2933.2,2.9216932]
[1644659344413,0.13791267,2933.4,2933.3,1.30892821]
[1644659344617,0.13791267,2933.4,2933.2,2.9216932]
[1644659344815,0.13791267,2933.4,2933.3,1.30892429]
[1644659345015,0.13791267,2933.4,2933.2,2.9216932]
[1644659345216,0.13791267,2933.4,2933.3,1.30905498]
[1644659345519,0.16551536,2933.4,2933.3,1.30907871]
[1644659345715,0.16551536,2933.4,2933.2,2.9216932]
[1644659345914,0.13791267,2933.3,2933.2,2.9216932]
[1644659346365,0.13791267,2933.3,2933.2,2.91274343]
[1644659346765,0.13791267,2933.3,2933.2,4.22179894]
[1644659346965,0.13791267,2933.3,2933.2,4.22179814]
[1644659347166,0.13791267,2933.3,2933.2,4.22179829]
[1644659347365,0.13791267,2933.3,2933.2,2.91274343]
[1644659347973,0.13791267,2933.3,2933.2,4.22189052]
[1644659348275,0.13791267,2933.3,2933.2,4.22188606]
[1644659348470,0.13791267,2933.3,2933.2,2.91274343]
[1644659348675,0.13791267,2933.3,2933.2,4.22188059]
[1644659348869,0.13791267,2933.3,2933.2,2.91274343]
[1644659349070,0.13791267,2933.3,2933.2,4.22187982]
[1644659349271,0.13791267,2933.3,2933.2,2.91274343]
[1644659349469,0.13791267,2933.3,2933.2,4.22193969]
[1644659349670,0.13791267,2933.3,2933.2,2.91274343]
[1644659350124,0.15124078,2933.3,2933.2,2.91274343]
[1644659350726,0.15124078,2933.3,2933.2,4.22196272]
[1644659350924,0.15124078,2933.3,2933.2,2.91274343]
[1644659351127,0.15124078,2933.3,2933.2,4.22196152]
[1644659351331,0.15124078,2933.3,2933.2,2.91274343]
[1644659351526,0.15124078,2933.3,2933.2,4.22205472]
[1644659351726,0.15124078,2933.3,2933.2,2.91274343]
[1644659351926,0.15124078,2933.3,2933.2,4.22205262]
[1644659352126,0.15124078,2933.3,2933.2,2.91274343]
[1644659352528,0.15124078,2933.3,2933.2,4.22205182]
[1644659352728,0.15124078,2933.3,2933.2,2.91274343]
[1644659352927,0.15124078,2933.3,2933.2,4.22205381]
[1644659353128,0.15124078,2933.3,2933.2,2.91274343]
[1644659353530,0.15124078,2933.3,2933.2,4.22209977]
[1644659353766,0.15124078,2933.3,2933.2,2.91274343]
[1644659354367,0.15124078,2933.3,2933.2,4.22217105]
[1644659354568,0.15124078,2933.3,2933.2,4.22217131]
[1644659354768,0.15124078,2933.3,2933.2,2.91274343]
[1644659355168,0.15124078,2933.3,2933.2,4.22214215]
[1644659355368,0.15124078,2933.3,2933.2,4.22218599]
[1644659355567,0.15124078,2933.3,2933.2,4.22212639]
[1644659355767,0.15124078,2933.3,2933.2,2.91274343]
[1644659355970,0.15124078,2933.3,2933.2,4.2221264]
[1644659356268,0.15124078,2933.3,2933.2,4.22212684]
[1644659356472,0.15124078,2933.3,2933.2,2.91274343]
[1644659356667,0.15124078,2933.3,2933.2,4.22212714]
[1644659356869,0.15124078,2933.3,2933.2,2.91274343]
[1644659357069,0.15124078,2933.3,2933.2,4.22212564]
[1644659357271,0.15124078,2933.3,2933.2,2.91274343]
[1644659357920,0.15124078,2933.3,2933.2,4.22215307]
[1644659358112,0.15124078,2933.3,2933.2,4.22215258]
[1644659358316,0.15124078,2933.3,2933.2,4.22215255]
[1644659358516,0.15124078,2933.3,2933.2,2.91274343]
[1644659358716,0.15124078,2933.3,2933.2,4.22215366]
[1644659358916,0.15124078,2933.3,2933.2,2.91274343]
[1644659359124,0.15124078,2933.3,2933.2,4.22217943]
[1644659359319,0.15124078,2933.3,2933.2,2.91274343]
[1644659359517,0.15124078,2933.3,2933.2,4.22217172]
[1644659359717,0.15124078,2933.3,2933.2,2.91274343]
[1644659359918,0.15124078,2933.3,2933.2,4.2221233]
[1644659360117,0.15124078,2933.3,2933.2,2.91274343]
[1644659360616,0.15124078,2933.3,2933.2,4.22207813]
[1644659360819,0.15124078,2933.3,2933.2,2.91274343]
[1644659361020,0.15124078,2933.3,2933.2,4.22208283]
[1644659361261,0.15124078,2933.3,2933.2,2.91274343]
[1644659361667,0.15124078,2933.3,2933.2,4.22247151]
[1644659361962,0.15124078,2933.3,2933.2,4.22247214]
[1644659362164,0.15124078,2933.3,2933.2,2.91274343]
[1644659362366,0.15124078,2933.3,2933.2,4.22247354]
[1644659362566,0.15124078,2933.3,2933.2,2.91274343]
[1644659362766,0.15124078,2933.3,2933.2,4.22247903]
[1644659362966,0.15124078,2933.3,2933.2,2.91274343]
[1644659363167,0.15124078,2933.3,2933.2,4.22248058]
[1644659363369,0.15124078,2933.3,2933.2,2.91274343]
[1644659363867,0.15124078,2933.3,2933.2,4.22243272]
[1644659364068,0.15124078,2933.3,2933.2,2.91274343]
[1644659364675,0.15124078,2933.3,2933.2,1.36527822]
[1644659364922,0.45124078,2933.3,2933.2,0.00350331]
[1644659365113,0.45124078,2933.3,2933.1,0.00894982]
[1644659365312,0.86548433,2933.2,2933.1,0.00894982]
[1644659365512,0.86548433,2933.2,2933.0,3.0]
[1644659365713,0.13791267,2933.1,2933.0,3.0]
[1644659367012,0.43791267,2933.1,2933.0,3.0]
[1644659367613,0.43791267,2933.1,2933.0,4.33096447]
[1644659369067,0.43791267,2933.1,2933.0,3.0]
[1644659369765,0.94802771,2933.1,2933.0,3.0]
[1644659369968,1.08594038,2933.1,2933.0,3.0]
[1644659370366,1.11735405,2933.1,2933.0,3.0]
[1644659376264,0.46932634,2933.1,2933.0,3.0]
[1644659376466,1.11735405,2933.1,2933.0,3.0]
[1644659376665,0.81735405,2933.1,2933.0,3.0]
[1644659376866,0.46932634,2933.1,2933.0,3.0]
[1644659378268,1.46932634,2933.1,2933.0,3.0]
[1644659378471,0.46932634,2933.1,2933.0,3.0]
[1644659378669,0.16932634,2933.1,2933.0,3.0]
[1644659378870,0.46932634,2933.1,2933.0,3.0]
[1644659379473,1.11735405,2933.1,2933.0,3.0]
[1644659383770,0.46932634,2933.1,2933.0,3.0]
[1644659384569,0.16932634,2933.1,2933.0,3.0]
[1644659384768,0.46932634,2933.1,2933.0,2.51578357]
[1644659385168,0.16932634,2933.1,2933.0,2.51578357]
[1644659385367,0.46932634,2933.1,2933.0,2.51578357]
[1644659385767,0.17032634,2933.1,2933.0,2.51578357]
[1644659385968,0.47032634,2933.1,2933.0,2.51578357]
[1644659386267,0.17032634,2933.1,2933.0,2.51578357]
[1644659386470,0.47032634,2933.1,2933.0,2.51578357]
[1644659387070,0.17032634,2933.1,2933.0,2.51578357]
[1644659387269,0.47032634,2933.1,2933.0,2.51578357]
[1644659388311,0.17032634,2933.1,2933.0,2.51578357]
[1644659388513,1.11835405,2933.1,2933.0,2.51578357]
[1644659389414,0.17032634,2933.1,2933.0,2.51578357]
[1644659389819,0.17032634,2933.1,2933.0,3.85768383]
[1644659389820,0.16932634,2933.1,2933.0,3.85768383]
[1644659390125,0.16932634,2933.1,2933.0,4.02798383]
[1644659390517,0.16932634,2933.1,2933.0,4.02448052]
[1644659391165,0.16932634,2933.1,2933.0,7.84518052]
[1644659391369,0.00994738,2933.8,2933.2,0.83191256]
[1644659391563,0.00894738,2933.8,2933.7,0.78282165]
[1644659391762,0.00894738,2933.8,2933.2,0.83191256]
[1644659391763,0.00894738,2933.8,2933.3,1.1598]
[1644659391964,0.64802771,2933.9,2933.3,1.1598]
[1644659392370,0.65697608,2933.9,2933.3,1.1598]
[1644659392671,0.65697608,2933.9,2933.4,0.751513]
[1644659392867,0.95697608,2933.9,2933.4,0.751513]
[1644659393367,0.64802771,2933.7,2933.4,0.751513]
[1644659393568,0.64802771,2933.7,2933.2,3.06745044]
[1644659393769,0.94802771,2933.7,2933.2,0.00895044]
[1644659394370,0.94802771,2933.7,2933.1,3.05996794]
[1644659394571,0.94802771,2933.7,2933.2,0.00895006]
[1644659394771,1.75568398,2933.7,2933.2,0.7206712]
[1644659395019,0.001,2933.6,2933.2,0.7206712]
[1644659395225,0.001,2933.6,2933.3,3.09109124]
[1644659395436,0.00894815,2933.8,2933.3,3.80961564]
[1644659395619,0.64802771,2934.0,2933.3,3.80961564]
[1644659395819,0.00894815,2933.8,2933.3,3.80961564]
[1644659396019,0.00894815,2933.8,2933.3,5.04361564]
[1644659396623,0.32788855,2934.3,2933.8,3.25]
[1644659396838,11.31292,2935.3,2933.9,3.991]
[1644659396839,0.32788855,2934.7,2933.9,3.991]
[1644659397025,0.03578848,2934.2,2933.9,3.991]
[1644659397825,0.03578848,2934.2,2934.0,0.1703]
[1644659398025,0.00396158,2935.2,2934.3,0.8520989]
[1644659398223,1.30160923,2935.4,2934.4,3.991]
[1644659398670,0.00396158,2935.4,2934.4,3.991]
[1644659398877,1.93065411,2935.5,2934.9,0.85241562]
[1644659399075,0.00396158,2935.4,2934.9,0.85241562]
[1644659399373,0.00396158,2935.4,2934.5,0.1703]
[1644659399578,0.1703,2935.3,2934.5,0.59636]
[1644659399774,0.1703,2935.3,2934.5,0.1703]
[1644659399775,0.00396158,2935.2,2934.5,0.1703]
[1644659400379,0.17426158,2935.2,2934.5,0.1703]
[1644659400576,0.7467886,2935.0,2934.2,1.2283]
[1644659400779,0.17426158,2934.9,2934.2,1.2283]
[1644659400976,0.66526158,2934.9,2934.0,3.5]
[1644659401176,1.17426158,2934.9,2934.0,3.5]
[1644659401375,0.17426158,2934.9,2934.0,3.5]
[1644659401675,0.17426158,2934.9,2934.1,0.87505019]
[1644659401875,0.17426158,2934.9,2934.1,0.88352634]
[1644659401876,0.00847458,2934.6,2934.1,0.88352634]
[1644659402722,0.17526158,2934.9,2934.1,0.87505019]
[1644659403222,0.0084747,2934.5,2934.1,0.88352617]
[1644659403824,0.0084747,2934.5,2934.1,0.00847598]
[1644659404022,0.17526158,2934.9,2934.0,3.09109911]
[1644659404222,0.00847475,2934.4,2934.1,0.00847589]
[1644659404822,0.00847475,2934.4,2933.9,0.39119031]
[1644659405124,0.64830768,2934.5,2934.0,0.85445671]
[1644659405322,0.00396158,2934.4,2934.0,0.85445671]
[1644659405530,0.30396158,2934.4,2934.0,0.85445671]
[1644659405727,0.30496158,2934.4,2933.9,0.39119031]
[1644659406565,0.005031,2934.3,2933.9,0.39119031]
[1644659407166,0.005031,2934.3,2934.0,0.84800964]
[1644659407567,0.30496158,2934.4,2934.0,0.84800964]
[1644659407969,0.005031,2934.3,2934.0,0.84800964]
[1644659408570,0.00899258,2934.3,2934.0,0.84800964]
[1644659408768,0.30496158,2934.6,2934.0,0.84800964]
[1644659408970,0.00839768,2934.3,2934.0,0.85640831]
[1644659409778,0.00839768,2934.3,2934.0,0.00839867]
[1644659410018,0.64531694,2934.4,2933.7,0.4203]
[1644659410217,0.64531694,2934.4,2933.7,0.1703]
[1644659410218,0.00396158,2934.3,2933.7,0.1703]
[1644659410420,0.31247696,2934.3,2934.0,0.00851638]
[1644659410618,0.31347696,2934.3,2934.0,0.00851638]
[1644659410823,1.17796201,2934.3,2934.0,0.00851638]
[1644659411019,0.001,2934.2,2934.0,0.00851638]
[1644659411219,0.07351852,2934.2,2933.7,1.02594369]
[1644659411422,0.07351852,2934.2,2934.0,0.00851638]
[1644659412524,0.07351852,2934.2,2933.7,1.02594369]
[1644659412726,0.07351852,2934.2,2934.0,0.0027179]
[1644659413528,0.07351852,2934.2,2933.7,0.1703]
[1644659413773,0.88913546,2934.2,2933.7,0.1703]
[1644659413973,0.72179704,2934.1,2933.7,0.1703]
[1644659414169,0.24281852,2934.0,2933.7,0.1703]
[1644659414368,0.07251852,2933.9,2933.7,0.1703]
[1644659414971,0.66278713,2933.8,2933.7,0.1703]
[1644659415172,1.03530565,2933.8,2933.7,0.1703]
[1644659419441,1.20560565,2933.8,2933.7,0.1703]
[1644659419823,1.03530565,2933.8,2933.7,0.1703]
[1644659422267,1.68062259,2933.8,2933.7,0.1703]
[1644659422467,1.20560565,2933.8,2933.6,0.00899533]
[1644659422671,0.7178327,2933.7,2933.6,0.00899533]
[1644659422873,0.07251852,2933.7,2933.6,0.00899533]
[1644659423274,0.3,2933.6,2933.1,0.00350331]
[1644659423475,0.07251852,2933.5,2933.1,0.03949049]
[1644659423883,0.07251852,2933.4,2933.1,0.03949049]
[1644659424074,0.07251852,2933.3,2933.1,0.03949049]
[1644659424274,0.07251852,2933.2,2933.1,0.03949049]
[1644659424475,0.07251852,2933.2,2933.0,2.51578357]
[1644659424676,0.3,2933.7,2933.0,2.51578357]
[1644659424677,0.07251852,2933.1,2933.0,2.51578357]
[1644659424920,0.07251852,2933.6,2933.0,2.26420522]
[1644659425115,0.07251852,2933.5,2933.0,2.26420522]
[1644659425315,0.07251852,2933.4,2933.1,0.00348448]
[1644659425515,0.71335969,2933.3,2933.1,0.00348448]
[1644659425716,0.07251852,2933.2,2933.1,0.00348448]
[1644659425916,0.07251852,2933.2,2933.1,0.0089959]
[1644659426522,0.07251852,2933.4,2933.1,0.0089959]
[1644659426717,0.07251852,2933.3,2933.1,0.01248038]
[1644659426916,0.07251852,2933.2,2933.1,0.00348448]
[1644659427117,0.001,2933.5,2933.0,2.27320124]
[1644659427118,0.71765753,2933.4,2933.0,2.27320124]
[1644659427316,1.31765753,2933.4,2933.1,0.00348448]
[1644659427517,0.07251852,2933.3,2933.1,0.00348448]
[1644659428320,0.07251852,2933.3,2933.1,0.01248044]
[1644659429270,0.07251852,2933.2,2933.1,0.00348448]
[1644659429472,0.07251852,2933.2,2933.1,0.00899596]
[1644659429670,0.3,2933.4,2933.1,0.00899596]
[1644659429671,0.07251852,2933.3,2933.1,0.00899596]
[1644659429872,0.07251852,2933.2,2933.1,0.01248044]
[1644659430172,0.07251852,2933.2,2933.1,0.00899596]
[1644659430370,0.07251852,2933.3,2933.0,2.26420522]
[1644659430571,0.07251852,2933.3,2933.1,0.00348448]
[1644659430773,0.07251852,2933.2,2933.1,0.00348448]
[1644659430971,0.07251852,2933.2,2933.0,2.27320124]
[1644659431172,0.07251852,2933.1,2933.0,2.27320124]
[1644659431676,0.07251852,2933.1,2933.0,2.26420522]
[1644659431871,0.07251852,2933.3,2933.0,2.26420522]
[1644659432072,0.07251852,2933.3,2933.1,0.0034844]
[1644659433122,0.07251852,2933.3,2933.1,0.01248036]
[1644659434122,0.07251852,2933.3,2933.1,0.0034844]
[1644659434335,0.07251852,2933.3,2933.1,0.01248036]
[1644659435326,0.07251852,2933.3,2933.1,0.0034844]
[1644659435528,0.07251852,2933.3,2933.1,0.01248036]
[1644659436367,0.07251852,2933.3,2933.1,0.0034844]
[1644659436768,0.07251852,2933.3,2933.1,0.01248036]
[1644659437568,0.07251852,2933.3,2933.1,0.0034844]
[1644659437967,0.07251852,2933.2,2933.1,0.01248036]
[1644659438167,0.07251852,2933.2,2933.1,0.00899596]
[1644659438369,0.07251852,2933.3,2933.1,0.00899596]
[1644659438568,0.07251852,2933.2,2933.1,0.01248036]
[1644659438770,0.07251852,2933.2,2933.0,2.28248623]
[1644659438970,0.07251852,2933.1,2933.0,2.28248623]
[1644659439371,0.301,2933.4,2933.0,2.28248623]
[1644659439372,0.07251852,2933.3,2933.0,2.28248623]
[1644659439578,0.07251852,2933.3,2933.1,0.0034844]
[1644659439779,1.001,2933.4,2933.1,0.0034844]
[1644659440023,1.301,2933.4,2933.1,0.0034844]
[1644659440223,0.301,2933.4,2933.1,0.01248036]
[1644659440433,1.301,2933.4,2933.1,0.01248036]
[1644659440630,0.3,2933.4,2933.1,0.01248036]
[1644659440830,2.44418927,2933.5,2933.1,0.01248036]
[1644659441031,1.44418927,2933.5,2933.1,0.01248036]
[1644659441228,1.44418927,2933.5,2933.1,0.0034844]
[1644659441229,2.44418927,2933.5,2933.1,0.0034844]
[1644659441429,1.44418927,2933.5,2933.2,0.00899585]
[1644659441631,2.44418927,2933.5,2933.2,0.00899585]
[1644659441829,1.44418927,2933.5,2933.2,0.00899585]
[1644659442032,0.64531418,2933.4,2933.2,0.00899585]
[1644659442239,0.81561418,2933.4,2933.2,0.00899585]
[1644659442431,1.81561418,2933.4,2933.1,0.0034844]
[1644659442632,0.64531418,2933.3,2933.2,0.00899585]
[1644659443035,0.3,2933.3,2933.2,0.00899585]
[1644659443234,0.94531418,2933.3,2933.2,0.00899585]
[1644659443434,0.3,2933.3,2933.2,0.00899585]
[1644659443663,2.11561418,2933.4,2933.1,0.0034844]
[1644659443868,1.94531418,2933.4,2933.1,0.0124803]
[1644659444368,0.94531418,2933.4,2933.1,0.0124803]
[1644659444575,0.64531418,2933.3,2933.1,0.0124803]
[1644659444775,0.64531418,2933.3,2933.1,0.0034844]
[1644659444972,0.64531418,2933.3,2933.1,0.0089959]
[1644659445973,0.64531418,2933.3,2933.0,2.03642217]
[1644659446375,0.64531418,2933.3,2933.1,0.00899596]
[1644659447174,0.64531418,2933.3,2933.0,2.03642217]
[1644659447428,0.64531418,2933.3,2933.1,0.00899596]
[1644659448416,0.64531418,2933.3,2933.0,2.03642217]
[1644659448621,0.64531418,2933.3,2933.1,0.00899596]
[1644659449222,0.94631418,2933.4,2933.1,0.00899596]
[1644659449624,0.94631418,2933.4,2933.0,2.03642217]
[1644659449821,0.94631418,2933.4,2933.1,0.0089959]
[1644659450624,0.64531418,2933.3,2933.1,0.0089959]
[1644659450822,0.64531418,2933.3,2933.0,2.03642217]
[1644659451021,0.64531418,2933.3,2933.1,0.0089959]
[1644659451674,0.64531418,2933.2,2933.1,0.0089959]
[1644659452073,0.64531418,2933.2,2933.0,2.03642217]
[1644659452074,0.94531418,2933.2,2933.0,2.03642217]
[1644659452276,0.94531418,2933.2,2933.1,0.00899596]
[1644659452277,1.24531418,2933.2,2933.1,0.00899596]
[1644659453178,1.24531418,2933.2,2933.0,2.03642217]
[1644659453577,1.24531418,2933.2,2933.0,2.04541819]
[1644659453778,0.64531418,2933.1,2933.0,2.04541819]
[1644659454377,0.64531418,2933.1,2933.0,2.03642217]
[1644659457224,0.6,2933.2,2933.0,2.03642217]
[1644659457425,0.86058812,2933.1,2933.0,2.03642217]
[1644659457627,1.16058812,2933.1,2933.0,2.03642217]
[1644659458666,0.3,2933.1,2933.0,2.03642217]
[1644659459069,1.46058812,2933.2,2933.0,2.03642217]
[1644659459670,0.07254527,2933.1,2933.0,2.03642217]
[1644659460375,0.86058812,2933.2,2933.0,2.03642217]
[1644659460571,0.07254527,2933.3,2933.0,2.03642217]
[1644659460572,0.07254527,2933.1,2933.0,2.03642217]
[1644659460971,0.86058812,2933.2,2933.0,2.03642217]
[1644659461373,0.93313339,2933.2,2933.0,2.03642217]
[1644659461573,0.07254527,2933.1,2933.0,2.03642217]
[1644659461977,0.07254527,2933.1,2933.0,2.04541825]
[1644659462626,0.93313339,2933.1,2933.0,2.04541825]
[1644659462833,0.93313339,2933.1,2933.0,2.03642217]
[1644659463636,0.07254527,2933.1,2933.0,2.03642217]
[1644659464932,0.93313339,2933.1,2933.0,1.82793547]
[1644659465134,1.46058812,2933.2,2933.0,1.82793547]
[1644659465833,0.86058812,2933.1,2933.0,1.82793547]
[1644659467273,1.16058812,2933.2,2933.0,1.82793547]
[1644659467880,1.16058812,2933.2,2933.0,1.83693155]
[1644659468780,0.3,2933.2,2933.0,1.82793547]
[1644659468979,1.16058812,2933.3,2933.0,1.82793547]
[1644659468980,2.46058812,2933.3,2933.0,1.82793547]
[1644659469182,1.46058812,2933.3,2933.0,1.83693155]
[1644659469380,2.46058812,2933.3,2933.0,1.83693155]
[1644659469581,1.46058812,2933.3,2933.0,1.83693155]
[1644659469781,2.46058812,2933.3,2933.0,1.83693155]
[1644659470020,1.46058812,2933.3,2933.0,1.82793547]
[1644659470219,2.46058812,2933.3,2933.0,1.83693149]
[1644659470419,0.6,2933.3,2933.0,1.83693149]
[1644659470627,1.16058812,2933.3,2933.0,1.83693149]
[1644659470821,0.86058812,2933.3,2933.0,1.83693149]
[1644659471220,0.86058812,2933.3,2933.0,1.82793547]
[1644659471419,0.86058812,2933.3,2933.0,1.83693149]
[1644659472523,0.86058812,2933.3,2933.0,1.82793547]
[1644659472724,0.86058812,2933.3,2933.0,1.83693149]
[1644659473332,0.6,2933.3,2933.0,1.83693149]
[1644659473771,0.86058812,2933.3,2933.0,1.82793547]
[1644659473972,0.86058812,2933.3,2933.0,1.83693149]
[1644659474173,0.86058812,2933.2,2933.0,1.83693149]
[1644659474373,1.16058812,2933.2,2933.0,1.83693149]
[1644659474971,1.16058812,2933.2,2933.0,1.82793547]
[1644659475171,1.16058812,2933.2,2933.0,1.83693155]
[1644659475372,0.3,2933.2,2933.0,1.83693155]
[1644659475781,1.16058812,2933.3,2933.0,1.83693155]
[1644659475971,1.16058812,2933.3,2933.0,1.82793547]
[1644659476374,1.16058812,2933.3,2933.0,1.83693155]
[1644659476375,0.86058812,2933.2,2933.0,1.83693155]
[1644659476783,0.86058812,2933.1,2933.0,1.83693155]
[1644659476979,1.46058812,2933.2,2933.0,1.83693155]
[1644659477175,0.86058812,2933.1,2933.0,1.83693155]
[1644659477427,0.86058812,2933.1,2933.0,1.82793547]
[1644659479230,1.6,2933.2,2933.0,1.82793547]
[1644659479231,0.6,2933.2,2933.0,1.82793547]
[1644659479438,0.73131727,2933.6,2933.3,2.0]
[1644659479641,1.1385,2933.9,2933.4,3.5]
[1644659479642,0.56075843,2933.9,2933.4,3.5]
[1644659479840,0.86744032,2933.6,2933.5,0.1701]
[1644659480051,0.86744032,2933.6,2933.2,3.5]
[1644659480052,0.86744032,2933.7,2933.4,0.491]
[1644659480238,0.57371216,2934.2,2933.5,3.5]
[1644659480239,0.86744032,2933.9,2933.5,3.5]
[1644659480443,0.86744032,2933.9,2933.6,0.75486105]
[1644659480739,0.86744032,2933.9,2933.7,0.1703]
[1644659480740,0.8714019,2933.9,2933.7,0.1703]
[1644659480943,0.86744032,2934.3,2933.7,0.1703]
[1644659481183,0.01295497,2934.2,2933.7,0.1703]
[1644659481773,0.01295497,2934.2,2934.0,1.10327329]
[1644659481774,0.88039529,2934.2,2934.0,1.10327329]
[1644659481973,0.00899339,2934.2,2934.0,1.10327329]
[1644659482175,1.4714019,2934.3,2934.0,1.10327329]
[1644659482176,0.6,2934.3,2934.0,1.10327329]
[1644659482374,0.00899378,2934.2,2934.0,1.10327329]
[1644659483374,0.00396158,2934.3,2933.9,0.59648]
[1644659483580,0.00899403,2934.2,2933.9,0.43517524]
[1644659484380,0.00396158,2934.3,2933.9,0.42618]
[1644659484777,0.00899397,2934.2,2933.9,0.43517514]
[1644659485020,0.00899397,2934.2,2933.9,3.55407376]
[1644659485220,0.00899397,2934.2,2933.9,0.43517514]
[1644659485623,0.00396158,2934.3,2933.9,0.42618]
[1644659485823,0.00396158,2934.3,2933.9,3.68879421]
[1644659486027,0.00899397,2934.2,2934.0,0.491]
[1644659486227,0.00899397,2934.2,2934.1,3.41000331]
[1644659486822,0.00396158,2934.7,2934.1,4.48746743]
[1644659487127,0.00396158,2934.7,2934.4,0.89489613]
[1644659487323,1.1714019,2934.8,2934.5,0.42609]
[1644659487528,0.001,2934.7,2934.5,0.42609]
[1644659488228,0.30396158,2934.8,2934.5,0.42609]
[1644659488428,0.00899346,2934.7,2934.5,0.42609]
[1644659489074,0.30899346,2934.7,2934.5,0.42609]
[1644659489275,0.3,2934.7,2934.5,3.50929528]
[1644659489476,0.00899346,2934.7,2934.6,3.06477376]
[1644659489877,0.00899346,2934.7,2934.5,0.42609]
[1644659490085,0.001,2935.1,2934.6,3.56221601]
[1644659490281,0.03596843,2935.2,2934.6,5.92743801]
[1644659490478,0.21454,2935.3,2934.6,5.92743801]
[1644659490877,0.21454,2935.3,2935.1,1.18211457]
[1644659491081,0.21454,2935.3,2935.2,3.25076097]
[1644659491283,0.21454,2935.3,2935.2,3.991]
[1644659491485,0.21454,2935.3,2935.2,0.491]
[1644659492080,0.001,2935.9,2935.4,0.85178]
[1644659492283,0.86744032,2935.9,2935.4,1.02188]
[1644659492537,0.001,2936.3,2934.7,4.7478]
[1644659492538,0.33769824,2935.3,2934.7,4.7478]
[1644659492732,0.33769824,2935.3,2934.6,3.71882521]
[1644659493030,0.33769824,2935.3,2935.0,0.79467287]
[1644659493231,0.33769824,2935.3,2934.6,3.71882521]
[1644659493438,0.33769824,2935.3,2934.6,0.64490521]
[1644659493636,0.33769824,2935.3,2934.6,4.14490521]
[1644659493835,0.33769824,2935.3,2934.6,0.64490521]
[1644659494437,0.00562896,2935.1,2934.8,0.85903365]
[1644659495236,0.33769824,2935.3,2934.8,0.85903365]
[1644659495636,0.00899627,2935.1,2934.8,0.85903365]
[1644659495839,0.00899627,2935.1,2934.6,0.81520521]
[1644659496038,0.00899627,2935.1,2934.6,0.38912521]
[1644659496480,0.63769824,2935.3,2934.6,0.38912521]
[1644659496690,0.63769824,2935.3,2934.6,0.21882521]
[1644659496882,0.00899638,2935.0,2934.6,0.95329589]
[1644659497484,0.63769824,2935.3,2934.7,6.75]
[1644659497485,0.33769824,2935.3,2934.7,6.75]
[1644659497686,0.33769824,2935.3,2934.8,1.7038253]
[1644659497882,0.33769824,2935.3,2934.9,3.991]
[1644659499190,0.00562575,2935.2,2935.0,0.1703]
[1644659499384,0.00562575,2935.2,2935.1,2.09728235]
[1644659499586,0.00562575,2935.2,2935.1,2.26758235]
[1644659499787,0.00562575,2935.2,2935.1,5.63334774]
[1644659500036,0.33769824,2935.3,2935.1,5.63334774]
[1644659500234,0.33769824,2935.3,2935.2,3.29994356]
[1644659500435,0.34669428,2935.3,2935.2,3.79094356]
[1644659500637,0.035977,2935.9,2935.2,3.79094356]
[1644659500845,0.035977,2935.9,2935.5,5.0]
[1644659501047,0.035977,2935.9,2935.6,0.491]